fUSD/lending_fUSD_20250225
["ID","MTS","AMOUNT","RATE_DAILY","PERIOD"]
[354386107,1740468725431,-576.99,0.0005589,120]
[354386108,1740468725440,-514.43725904,0.0005589,120]
[354386109,1740468725449,-500.0,0.0005589,120]
[354386110,1740468725459,-2110.84,0.0005589,120]
[354386111,1740468725468,-637.74,0.0005589,120]
[354386112,1740468725477,-2315.41,0.0005589,120]
[354386113,1740468725487,-3875.43,0.0005589,7]
[354386114,1740468725497,-500.0,0.0005589,120]
[354386115,1740468725507,-1035.71,0.0005589,120]
[354386116,1740468725517,-500.0,0.0005589,120]
[354386117,1740468725527,-500.0,0.0005589,60]
[354386118,1740468725537,-750.25,0.0005589,120]
[354386119,1740468725547,-500.0,0.0005589,120]
[354386120,1740468725562,-500.0,0.0005589,120]
[354386121,1740468725572,-3264.88,0.0005589,120]
[354386122,1740468725582,-500.0,0.0005589,120]
[354386123,1740468725592,-2938.93,0.0005589,120]
[354386124,1740468725602,-500.0,0.0005589,120]
[354386125,1740468725611,-1210.86,0.0005589,120]
[354386126,1740468725620,-534.95,0.0005589,120]
[354386127,1740468725630,-703.65,0.0005589,120]
[354386128,1740468725640,-2458.44,0.0005589,120]
[354386129,1740468725650,-500.0,0.0005589,120]
[354386130,1740468725659,-1556.62,0.0005589,120]
[354386131,1740468725670,-500.0,0.0005589,120]
[354386132,1740468725679,-2761.69,0.0005589,120]
[354386133,1740468725689,-585.51,0.0005589,120]
[354386134,1740468725698,-2649.21,0.0005589,120]
[354386135,1740468725708,-1493.71,0.0005589,120]
[354386136,1740468725717,-1981.89,0.0005589,120]
[354386137,1740468725727,-689.83,0.0005589,120]
[354386138,1740468725736,-2553.02,0.0005589,120]
[354386139,1740468725746,-3211.4,0.0005589,120]
[354386140,1740468725755,-1352.07,0.0005589,120]
[354386141,1740468725764,-2909.1,0.0005589,120]
[354386142,1740468725773,-1667.75,0.0005589,120]
[354386143,1740468725783,-4349.64,0.0005589,120]
[354386144,1740468725792,-1519.71,0.0005589,120]
[354386145,1740468725802,-752.34,0.0005589,120]
[354386146,1740468725814,-864.91,0.0005589,120]
[354386147,1740468725823,-1290.66,0.0005589,120]
[354386148,1740468725833,-500.0,0.0005589,120]
[354386149,1740468725843,-910.81,0.0005589,5]
[354386150,1740468725852,-2901.27,0.0005589,120]
[354386151,1740468725862,-1857.67,0.0005589,120]
[354386152,1740468725871,-500.0,0.0005589,120]
[354386153,1740468725881,-2986.93,0.0005589,120]
[354386154,1740468725890,-2864.49,0.0005589,120]
[354386155,1740468725899,-500.0,0.0005589,120]
[354386156,1740468725908,-500.0,0.0005589,120]
[354386157,1740468725917,-2305.88,0.0005589,120]
[354386158,1740468725927,-2121.17,0.0005589,120]
[354386159,1740468726020,-500.0,0.0005589,120]
[354386160,1740468726030,-2477.45,0.0005589,120]
[354386161,1740468726039,-500.0,0.0005589,120]
[354386162,1740468726049,-1752.42,0.0005589,120]
[354386163,1740468726061,-538.64,0.0005589,120]
[354386164,1740468726070,-1452.1,0.0005589,120]
[354386165,1740468726081,-1822.96,0.0005589,120]
[354386166,1740468726090,-1851.24,0.0005589,120]
[354386167,1740468726100,-500.0,0.0005589,120]
[354386168,1740468726110,-607.87,0.0005589,120]
[354386169,1740468726123,-500.0,0.0005589,120]
[354386170,1740468726134,-500.0,0.0005589,120]
[354386171,1740468726143,-2265.65,0.0005589,120]
[354386172,1740468726153,-3192.11,0.0005589,120]
[354386173,1740468726164,-3707.86,0.0005589,120]
[354386174,1740468726173,-1530.35,0.0005589,120]
[354386175,1740468726183,-1400.72,0.0005589,120]
[354386176,1740468726194,-1470.7,0.0005589,120]
[354386177,1740468726207,-300.27707189,0.0005589,120]
[354386178,1740468726217,-813.46,0.0005589,120]
[354386179,1740468726227,-1028.29,0.0005589,120]
[354386180,1740468726236,-2337.12,0.0005589,120]
[354386181,1740468726246,-640.5,0.0005589,120]
[354386182,1740468726255,-500.0,0.0005589,120]
[354386183,1740468726265,-3975.46,0.0005589,120]
[354386184,1740468726274,-3333.6,0.0005589,120]
[354386185,1740468726283,-500.0,0.0005589,120]
[354386186,1740468726292,-5873.49,0.0005589,120]
[354386187,1740468726301,-1036.75,0.0005589,120]
[354386188,1740468726312,-500.0,0.0005589,120]
[354386189,1740468726322,-613.18,0.0005589,120]
[354386190,1740468726332,-2745.61,0.0005589,120]
[354386191,1740468726342,-562.09,0.0005589,120]
[354386192,1740468726351,-707.46,0.0005589,120]
[354386193,1740468726360,-4540.04,0.0005589,120]
[354386194,1740468726370,-500.0,0.0005589,120]
[354386195,1740468726380,-1113.18,0.0005589,120]
[354386196,1740468726389,-2703.16,0.0005589,120]
[354386197,1740468726399,-3052.04,0.0005589,120]
[354386198,1740468726408,-522.41,0.0005589,120]
[354386199,1740468726418,-500.0,0.0005589,120]
[354386200,1740468726428,-551.64,0.0005589,120]
[354386201,1740468726437,-500.0,0.0005589,120]
[354386202,1740468726446,-1552.51,0.0005589,120]
[354386203,1740468726456,-1000.0,0.0005589,60]
[354386204,1740468726466,-2971.45,0.0005589,90]
[354386205,1740468726476,-1701.44,0.0005589,120]
[354386206,1740468726486,-553.8,0.0005589,120]
[354386207,1740468726495,-2581.17,0.0005589,120]
[354386208,1740468726505,-1833.0,0.0005589,120]
[354386209,1740468726515,-500.0,0.0005589,120]
[354386210,1740468726524,-500.0,0.0005589,120]
[354386211,1740468726534,-3435.08,0.0005589,120]
[354386212,1740468726543,-516.91482478,0.0005589,120]
[354386213,1740468726553,-500.0,0.0005589,120]
[354386214,1740468726566,-509.6955024,0.0005589,120]
[354386215,1740468726577,-500.0,0.0005589,120]
[354386216,1740468726587,-522.17,0.0005589,120]
[354386217,1740468726596,-500.0,0.0005589,120]
[354386218,1740468726606,-857.98,0.0005589,120]
[354386219,1740468726615,-3140.0,0.0005589,120]
[354386220,1740468726624,-3227.53,0.0005589,120]
[354386221,1740468726633,-500.0,0.0005589,120]
[354386222,1740468726642,-500.0,0.0005589,120]
[354386223,1740468726652,-500.0,0.0005589,120]
[354386224,1740468726661,-500.0,0.0005589,120]
[354386225,1740468726671,-775.19,0.0005589,120]
[354386226,1740468726680,-872.89,0.0005589,120]
[354386227,1740468726690,-500.0,0.0005589,120]
[354386228,1740468726700,-2538.08,0.0005589,120]
[354386229,1740468726710,-500.0,0.0005589,120]
[354386230,1740468726720,-500.0,0.0005589,120]
[354386231,1740468726730,-2940.18,0.0005589,120]
[354386232,1740468726740,-3583.88,0.0005589,120]
[354386233,1740468726750,-2559.65,0.0005589,120]
[354386234,1740468726760,-500.0,0.0005589,120]
[354386235,1740468726770,-1118.81,0.0005589,120]
[354386236,1740468726780,-688.16,0.0005589,120]
[354386237,1740468726789,-500.0,0.0005589,120]
[354386238,1740468726799,-3329.23,0.0005589,120]
[354386239,1740468726811,-1907.44,0.0005589,120]
[354386240,1740468726821,-568.38,0.0005589,120]
[354386241,1740468726831,-3487.12,0.0005589,120]
[354386242,1740468726841,-2138.38,0.0005589,120]
[354386243,1740468726850,-998.34,0.0005589,120]
[354386244,1740468726860,-1469.89,0.0005589,120]
[354386245,1740468726869,-880.12,0.0005589,120]
[354386246,1740468726883,-500.0,0.0005589,120]
[354386247,1740468726893,-1941.03,0.0005589,120]
[354386248,1740468726903,-1969.46,0.0005589,120]
[354386249,1740468726913,-3496.1,0.0005589,120]
[354386250,1740468726922,-2020.04,0.0005589,120]
[354386251,1740468726933,-500.0,0.0005589,120]
[354386252,1740468726943,-1704.77,0.0005589,120]
[354386253,1740468726953,-500.0,0.0005589,120]
[354386254,1740468726964,-3000.0,0.0005589,120]
[354386255,1740468726974,-1814.1,0.0005589,120]
[354386256,1740468726986,-500.0,0.0005589,120]
[354386257,1740468726997,-3162.2,0.0005589,120]
[354386258,1740468727007,-561.29,0.0005589,120]
[354386259,1740468727018,-558.43,0.0005589,120]
[354386260,1740468727029,-500.0,0.0005589,2]
[354386261,1740468727040,-4214.34,0.0005589,120]
[354386262,1740468727050,-500.0,0.0005589,120]
[354386263,1740468727063,-1793.36,0.0005589,120]
[354386264,1740468727074,-1107.87,0.0005589,120]
[354386265,1740468727087,-1453.67,0.0005589,30]
[354386266,1740468727099,-1291.79,0.0005589,120]
[354386267,1740468727110,-2203.33,0.0005589,120]
[354386268,1740468727121,-500.0,0.0005589,120]
[354386269,1740468727134,-2186.37,0.0005589,120]
[354386270,1740468727144,-2099.71,0.0005589,120]
[354386271,1740468727155,-1541.65,0.0005589,120]
[354386272,1740468727166,-500.0,0.0005589,120]
[354386273,1740468727176,-500.0,0.0005589,2]
[354386274,1740468727187,-500.0,0.0005589,120]
[354386275,1740468727197,-500.0,0.0005589,120]
[354386276,1740468727208,-500.0,0.0005589,120]
[354386277,1740468727219,-2864.64,0.0005589,120]
[354386278,1740468727230,-500.0,0.0005589,120]
[354386279,1740468727240,-500.0,0.0005589,120]
[354386280,1740468727250,-1803.36,0.0005589,120]
[354386281,1740468727261,-500.0,0.0005589,120]
[354386282,1740468727272,-1506.59,0.0005589,120]
[354386283,1740468727283,-1568.57,0.0005589,120]
[354386284,1740468727294,-980.59,0.0005589,120]
[354386285,1740468727305,-1792.49,0.0005589,120]
[354386286,1740468727319,-1620.72,0.0005589,120]
[354386287,1740468727331,-500.0,0.0005589,120]
[354386288,1740468727342,-500.0,0.0005589,120]
[354386289,1740468727353,-659.49,0.0005589,120]
[354386290,1740468727365,-500.0,0.0005589,120]
[354386291,1740468727376,-849.91,0.0005589,120]
[354386292,1740468727388,-500.0,0.0005589,120]
[354386293,1740468727398,-3340.49,0.0005589,120]
[354386294,1740468727409,-668.51,0.0005589,120]
[354386295,1740468727420,-500.0,0.0005589,120]
[354386296,1740468727430,-150.979023,0.0005589,120]
[354386297,1740468727442,-680.52,0.0005589,120]
[354386298,1740468727452,-500.0,0.0005589,120]
[354386299,1740468727463,-504.12312046,0.0005589,120]
[354386300,1740468727474,-1680.11,0.0005589,120]
[354386301,1740468727485,-500.0,0.0005589,120]
[354386302,1740468727496,-500.0,0.0005589,120]
[354386303,1740468727507,-2006.24,0.0005589,120]
[354386304,1740468727518,-2470.99,0.0005589,120]
[354386305,1740468727529,-1713.5,0.0005589,120]
[354386306,1740468727539,-294.1958893,0.000559,120]
[354386307,1740468727550,-607.0,0.000559,20]
[354386308,1740468727563,-450.0,0.00056,120]
[354386309,1740468727575,-580.0,0.00056,14]
[354386310,1740468727586,-722.09430344,0.00056,30]
[354386311,1740468727597,-31808.0,0.00056091,117]
[354386312,1740468727609,-563.24,0.00056164,120]
[354386313,1740468727620,-580.45,0.00056164,120]
[354386314,1740468727631,-170.40419,0.00056164,120]
[354386315,1740468727642,-167.182594,0.00056164,120]
[354386316,1740468727652,-406.014874,0.00056164,120]
[354386317,1740468727663,-554.357489,0.00056164,120]
[354386318,1740468727674,-500.0,0.00056164,120]
[354386319,1740468727685,-505.49693982,0.00056164,14]
[354386320,1740468727696,-502.779957,0.00056164,2]
[354386321,1740468727707,-500.0,0.00056164,120]
[354386322,1740468727717,-500.0,0.00056164,120]
[354386323,1740468727728,-500.0,0.00056164,120]
[354386324,1740468727738,-500.0,0.00056164,120]
[354386325,1740468727749,-500.0,0.00056164,120]
[354386326,1740468727759,-521.68,0.00056164,120]
[354386327,1740468727770,-500.0,0.00056164,120]
[354386328,1740468727779,-500.0,0.00056164,120]
[354386329,1740468727790,-699.56,0.00056164,120]
[354386330,1740468727801,-500.0,0.00056164,120]
[354386331,1740468727812,-500.0,0.00056164,120]
[354386332,1740468727823,-500.0,0.00056164,2]
[354386333,1740468727833,-510.53542994,0.00056164,120]
[354386334,1740468727843,-500.0,0.00056164,120]
[354386335,1740468727854,-500.0,0.00056164,120]
[354386336,1740468727865,-500.0,0.00056164,120]
[354386337,1740468727875,-500.0,0.00056164,120]
[354386338,1740468727886,-500.0,0.00056164,120]
[354386339,1740468727903,-500.0,0.00056164,120]
[354386340,1740468727921,-500.0,0.00056164,120]
[354386341,1740468727935,-687.3,0.00056164,120]
[354386342,1740468727951,-500.0,0.00056164,120]
[354386343,1740468727967,-500.0,0.00056164,120]
[354386344,1740468727983,-500.0,0.00056164,120]
[354386345,1740468727996,-500.0,0.00056164,120]
[354386346,1740468728013,-500.0,0.00056164,120]
[354386347,1740468728030,-1291.42,0.00056164,120]
[354386348,1740468728045,-500.0,0.00056164,120]
[354386349,1740468728064,-500.0,0.00056164,120]
[354386350,1740468728083,-500.0,0.00056164,120]
[354386351,1740468728101,-500.0,0.00056164,120]
[354386352,1740468728117,-500.0,0.00056164,120]
[354386353,1740468728137,-500.0,0.00056164,120]
[354386354,1740468728155,-463.76721587,0.00056164,120]
[354386355,1740468728170,-467.43866664,0.00056164,120]
[354386356,1740468728184,-541.52563365,0.00056164,120]
[354386357,1740468728201,-850.45,0.00056164,120]
[354386358,1740468728216,-500.0,0.00056164,120]
[354386359,1740468728228,-500.0,0.00056164,120]
[354386360,1740468728244,-500.0,0.00056164,120]
[354386361,1740468728258,-524.44341166,0.00056164,120]
[354386362,1740468728273,-500.0,0.00056164,120]
[354386363,1740468728287,-500.0,0.00056164,120]
[354386364,1740468728301,-836.92,0.00056164,120]
[354386365,1740468728317,-500.0,0.00056164,120]
[354386366,1740468728331,-500.0,0.00056164,120]
[354386367,1740468728344,-925.53,0.00056164,120]
[354386368,1740468728357,-500.0,0.00056164,120]
[354386369,1740468728370,-500.0,0.00056164,120]
[354386370,1740468728385,-525.48,0.00056164,120]
[354386371,1740468728398,-500.0,0.00056164,120]
[354386372,1740468728413,-500.0,0.00056164,120]
[354386373,1740468728427,-1017.7,0.00056164,120]
[354386374,1740468728441,-620.4,0.00056164,120]
[354386375,1740468728456,-500.0,0.00056164,120]
[354386376,1740468728469,-637.38,0.00056164,120]
[354386377,1740468728484,-500.0,0.00056164,120]
[354386378,1740468728498,-500.0,0.00056164,120]
[354386379,1740468728513,-822.2,0.00056164,120]
[354386380,1740468728527,-500.0,0.00056164,120]
[354386381,1740468728542,-500.0,0.00056164,120]
[354386382,1740468728556,-500.0,0.00056164,120]
[354386383,1740468728575,-500.0,0.00056164,120]
[354386384,1740468728591,-500.0,0.00056164,120]
[354386385,1740468728606,-500.0,0.00056164,120]
[354386386,1740468728621,-500.0,0.00056164,120]
[354386387,1740468728636,-543.16,0.00056164,120]
[354386388,1740468728651,-500.0,0.00056164,120]
[354386389,1740468728665,-500.0,0.00056164,120]
[354386390,1740468728680,-500.0,0.00056164,120]
[354386391,1740468728694,-1571.07,0.00056164,120]
[354386392,1740468728708,-848.24,0.00056164,120]
[354386393,1740468728723,-943.15,0.00056164,120]
[354386394,1740468728738,-514.91865698,0.00056164,120]
[354386395,1740468728752,-500.0,0.00056164,120]
[354386396,1740468728766,-1168.63,0.00056164,120]
[354386397,1740468728781,-500.0,0.00056164,120]
[354386398,1740468728797,-500.0,0.00056164,120]
[354386399,1740468728815,-500.0,0.00056164,120]
[354386400,1740468728832,-304.95727976,0.00056164,120]
[354386401,1740468728847,-517.51,0.00056164,120]
[354386402,1740468728862,-500.0,0.00056164,120]
[354386403,1740468728877,-951.32,0.00056164,120]
[354386404,1740468728892,-500.0,0.00056164,120]
[354386405,1740468728907,-2000.0,0.00056164,30]
[354386406,1740468728921,-500.0,0.00056164,120]
[354386407,1740468728936,-500.0,0.00056164,120]
[354386408,1740468728952,-500.0,0.00056164,120]
[354386409,1740468728968,-500.0,0.00056164,120]
[354386410,1740468728982,-500.0,0.00056164,120]
[354386411,1740468728998,-500.0,0.00056164,120]
[354386412,1740468729012,-500.0,0.00056164,120]
[354386413,1740468729026,-777.26,0.00056164,120]
[354386414,1740468729040,-500.0,0.00056164,120]
[354386415,1740468729054,-538.18320027,0.00056164,120]
[354386416,1740468729072,-500.0,0.00056164,120]
[354386417,1740468729090,-500.0,0.00056164,120]
[354386418,1740468729105,-560.94,0.00056164,120]
[354386419,1740468729120,-500.0,0.00056164,120]
[354386420,1740468729136,-500.0,0.00056164,120]
[354386421,1740468729150,-500.0,0.00056164,120]
[354386422,1740468729161,-500.0,0.00056164,120]
[354386423,1740468729175,-500.0,0.00056164,120]
[354386424,1740468729187,-404.43,0.00056164,7]
[354386425,1740468729199,-500.0,0.00056164,120]
[354386426,1740468729213,-1128.12,0.00056164,120]
[354386427,1740468729226,-500.0,0.00056164,120]
[354386428,1740468729238,-500.0,0.00056164,120]
[354386429,1740468729252,-500.0,0.00056164,120]
[354386430,1740468729265,-500.0,0.00056164,120]
[354386431,1740468729278,-610.79,0.00056164,120]
[354386432,1740468729291,-630.83,0.00056164,120]
[354386433,1740468729305,-508.53468868,0.00056164,120]
[354386434,1740468729320,-500.0,0.00056164,120]
[354386435,1740468729335,-500.0,0.00056164,120]
[354386436,1740468729348,-500.0,0.00056164,120]
[354386437,1740468729361,-500.0,0.00056164,120]
[354386438,1740468729375,-500.0,0.00056164,120]
[354386439,1740468729389,-500.0,0.00056164,120]
[354386440,1740468729403,-500.0,0.00056164,120]
[354386441,1740468729415,-500.0,0.00056164,120]
[354386442,1740468729428,-500.0,0.00056164,120]
[354386443,1740468729440,-641.8,0.00056164,120]
[354386444,1740468729452,-500.0,0.00056164,120]
[354386445,1740468729464,-511.03608184,0.00056164,120]
[354386446,1740468729477,-500.0,0.00056164,120]
[354386447,1740468729490,-1736.97,0.00056164,120]
[354386448,1740468729503,-406.26310879,0.00056164,120]
[354386449,1740468729517,-500.0,0.00056164,120]
[354386450,1740468729530,-500.0,0.00056164,120]
[354386451,1740468729543,-551.92,0.00056164,120]
[354386452,1740468729555,-829.97,0.00056164,120]
[354386453,1740468729571,-500.0,0.00056164,120]
[354386454,1740468729585,-1884.67,0.00056164,120]
[354386455,1740468729598,-1959.02,0.00056164,120]
[354386456,1740468729612,-687.65,0.00056164,120]
[354386457,1740468729625,-500.0,0.00056164,120]
[354386458,1740468729639,-1049.16,0.00056164,120]
[354386459,1740468729652,-500.0,0.00056164,120]
[354386460,1740468729665,-500.0,0.00056164,120]
[354386461,1740468729677,-500.0,0.00056164,120]
[354386462,1740468729690,-500.0,0.00056164,120]
[354386463,1740468729704,-500.0,0.00056164,120]
[354386464,1740468729717,-500.0,0.00056164,120]
[354386465,1740468729730,-516.35236688,0.00056164,120]
[354386466,1740468729744,-500.0,0.00056164,120]
[354386467,1740468729758,-500.0,0.00056164,120]
[354386468,1740468729770,-500.0,0.00056164,120]
[354386469,1740468729782,-500.0,0.00056164,120]
[354386470,1740468729795,-910.65,0.00056164,120]
[354386471,1740468729809,-500.0,0.00056164,120]
[354386472,1740468729824,-500.0,0.00056164,120]
[354386473,1740468729837,-500.0,0.00056164,120]
[354386474,1740468729850,-500.0,0.00056164,120]
[354386475,1740468729863,-500.0,0.00056164,120]
[354386476,1740468729876,-500.0,0.00056164,120]
[354386477,1740468729889,-1220.8,0.00056164,120]
[354386478,1740468729902,-500.0,0.00056164,120]
[354386479,1740468729915,-500.0,0.00056164,120]
[354386480,1740468729928,-500.0,0.00056164,120]
[354386481,1740468729941,-500.0,0.00056164,120]
[354386482,1740468729954,-500.0,0.00056164,120]
[354386483,1740468729967,-500.0,0.00056164,120]
[354386484,1740468729979,-500.0,0.00056164,2]
[354386485,1740468729993,-500.0,0.00056164,120]
[354386486,1740468730006,-522.31,0.00056164,120]
[354386487,1740468730019,-500.0,0.00056164,120]
[354386488,1740468730031,-1188.98,0.00056164,120]
[354386489,1740468730044,-526.28,0.00056164,120]
[354386490,1740468730057,-1040.34,0.00056164,120]
[354386491,1740468730074,-724.24,0.00056164,120]
[354386492,1740468730092,-500.0,0.00056164,120]
[354386493,1740468730106,-500.0,0.00056164,120]
[354386494,1740468730121,-500.0,0.00056164,120]
[354386495,1740468730134,-500.0,0.00056164,120]
[354386496,1740468730148,-1422.51,0.00056164,120]
[354386497,1740468730161,-500.0,0.00056164,120]
[354386498,1740468730174,-531.71361938,0.00056164,120]
[354386499,1740468730187,-500.0,0.00056164,120]
[354386500,1740468730201,-1615.65,0.00056164,120]
[354386501,1740468730215,-992.42,0.00056164,20]
[354386502,1740468730229,-500.0,0.00056164,120]
[354386503,1740468730241,-901.44,0.00056164,120]
[354386504,1740468730254,-500.0,0.00056164,120]
[354386505,1740468730267,-816.88,0.00056164,120]
[354386506,1740468730280,-500.0,0.00056164,120]
[354386507,1740468730293,-500.0,0.00056164,120]
[354386508,1740468730306,-955.28,0.00056164,120]
[354386509,1740468730322,-500.0,0.00056164,120]
[354386510,1740468730335,-671.92,0.00056164,120]
[354386511,1740468730348,-500.0,0.00056164,120]
[354386512,1740468730361,-1525.72,0.00056164,120]
[354386513,1740468730373,-500.0,0.00056164,40]
[354386514,1740468730386,-500.0,0.00056164,120]
[354386515,1740468730403,-1437.76,0.00056164,120]
[354386516,1740468730416,-500.0,0.00056164,120]
[354386517,1740468730429,-500.0,0.00056164,120]
[354386518,1740468730443,-1132.0,0.00056164,120]
[354386519,1740468730455,-500.0,0.00056164,120]
[354386520,1740468730470,-1768.38,0.00056164,120]
[354386521,1740468730486,-872.14,0.00056164,120]
[354386522,1740468730500,-510.27591783,0.00056164,120]
[354386523,1740468730516,-1405.94,0.00056164,120]
[354386524,1740468730532,-500.0,0.00056164,120]
[354386525,1740468730547,-500.0,0.00056164,120]
[354386526,1740468730565,-500.0,0.00056164,120]
[354386527,1740468730579,-517.19351331,0.00056164,120]
[354386528,1740468730594,-745.77,0.00056164,120]
[354386529,1740468730609,-1000.0,0.00056164,120]
[354386530,1740468730624,-500.0,0.00056164,120]
[354386531,1740468730640,-820.25,0.00056164,120]
[354386532,1740468730655,-778.18,0.00056164,120]
[354386533,1740468730669,-500.0,0.00056164,120]
[354386534,1740468730683,-500.0,0.00056164,120]
[354386535,1740468730697,-500.0,0.00056164,120]
[354386536,1740468730712,-618.03,0.00056164,120]
[354386537,1740468730727,-538.57,0.00056164,120]
[354386538,1740468730743,-813.45,0.00056164,120]
[354386539,1740468730757,-659.87,0.00056164,120]
[354386540,1740468730772,-504.11263807,0.00056164,120]
[354386541,1740468730786,-542.24,0.00056164,120]
[354386542,1740468730801,-1379.17,0.00056164,120]
[354386543,1740468730818,-500.0,0.00056164,120]
[354386544,1740468730832,-500.0,0.00056164,120]
[354386545,1740468730846,-1790.29,0.00056164,120]
[354386546,1740468730861,-500.0,0.00056164,120]
[354386547,1740468730874,-500.0,0.00056164,120]
[354386548,1740468730888,-500.0,0.00056164,120]
[354386549,1740468730902,-817.76,0.00056164,120]
[354386550,1740468730917,-1159.57,0.00056164,120]
[354386551,1740468730930,-500.0,0.00056164,120]
[354386552,1740468730944,-500.0,0.00056164,120]
[354386553,1740468730958,-500.0,0.00056164,120]
[354386554,1740468730971,-500.0,0.00056164,120]
[354386555,1740468730986,-500.0,0.00056164,120]
[354386556,1740468731000,-672.91,0.00056164,120]
[354386557,1740468731014,-1035.42,0.00056164,120]
[354386558,1740468731028,-1067.5,0.00056164,120]
[354386559,1740468731041,-500.0,0.00056164,120]
[354386560,1740468731055,-911.5,0.00056164,120]
[354386561,1740468731071,-782.71,0.00056164,120]
[354386562,1740468731089,-500.0,0.00056164,120]
[354386563,1740468731104,-515.57836364,0.00056164,120]
[354386564,1740468731121,-500.0,0.00056164,120]
[354386565,1740468731136,-692.81,0.00056164,120]
[354386566,1740468731146,-500.0,0.00056164,120]
[354386567,1740468731157,-1417.28,0.00056164,120]
[354386568,1740468731167,-4827.95,0.00056164,120]
[354386569,1740468731178,-500.0,0.00056164,120]
[354386570,1740468731188,-907.1,0.00056164,120]
[354386571,1740468731198,-1025.54,0.00056164,120]
[354386572,1740468731209,-500.0,0.00056164,120]
[354386573,1740468731480,-972.52,0.00056164,120]
[354386574,1740468731492,-500.0,0.00056164,120]
[354386575,1740468731503,-1147.6,0.00056164,120]
[354386576,1740468731513,-954.71,0.00056164,120]
[354386577,1740468731523,-927.58,0.00056164,120]
[354386578,1740468731535,-508.53,0.00056164,120]
[354386579,1740468731555,-500.0,0.00056164,120]
[354386580,1740468731567,-500.0,0.00056164,120]
[354386581,1740468731577,-1526.64,0.00056164,120]
[354386582,1740468731587,-500.0,0.00056164,120]
[354386583,1740468731598,-500.0,0.00056164,120]
[354386584,1740468731607,-1242.39,0.00056164,120]
[354386585,1740468731618,-871.61,0.00056164,120]
[354386586,1740468731627,-549.43,0.00056164,120]
[354386587,1740468731637,-1600.52,0.00056164,120]
[354386588,1740468731646,-500.0,0.00056164,120]
[354386589,1740468731656,-1142.54,0.00056164,120]
[354386590,1740468731666,-500.0,0.00056164,120]
[354386591,1740468731676,-552.98,0.00056164,120]
[354386592,1740468731687,-1401.97,0.00056164,120]
[354386593,1740468731697,-1245.93,0.00056164,120]
[354386594,1740468731706,-500.0,0.00056164,120]
[354386595,1740468731716,-1200.36,0.00056164,120]
[354386596,1740468731726,-500.0,0.00056164,120]
[354386597,1740468731737,-500.0,0.00056164,30]
[354386598,1740468731746,-373.07451139,0.00056164,120]
[354386599,1740468731756,-504.05,0.00056164,120]
[354386600,1740468731766,-971.46,0.00056164,120]
[354386601,1740468731776,-500.0,0.00056164,120]
[354386602,1740468731786,-500.0,0.00056164,120]
[354386603,1740468731796,-500.0,0.00056164,120]
[354386604,1740468731805,-500.0,0.00056164,120]
[354386605,1740468731819,-500.0,0.00056164,120]
[354386606,1740468731829,-599.74,0.00056164,120]